[Event "Titled Tuesday Blitz November 22 Early 2022"]
[White "Storey, Charles H"]
[Black "Colas, Joshua"]
[WhiteFideId "406686"]
[BlackFideId "2044447"]
[WhiteElo "2252"]
[BlackElo "2347"]
[Result "0-1"]
[Round "03"]
[TimeControl "180+1"]
[Date "2022.11.23"]
[WhiteClock "0:00:04"]
[BlackClock "0:00:22"]

1. c4 {[%clk 0:03:00]}  e6 {[%clk 0:02:56]} 2. g3 {[%clk 0:03:01]}  d5 {[%clk 0:02:56]} 3. Bg2 {[%clk 0:03:01]}  Nf6 {[%clk 0:02:56]} 4. Nf3 {[%clk 0:03:02]}  dxc4 {[%clk 0:02:57]} 5. Qa4+ {[%clk 0:03:00]}  Bd7 {[%clk 0:02:54]} 6. Qxc4 {[%clk 0:03:00]}  Bc6 {[%clk 0:02:55]} 7. d4 {[%clk 0:03:00]}  Nbd7 {[%clk 0:02:55]} 8. Nc3 {[%clk 0:03:00]}  Nb6 {[%clk 0:02:55]} 9. Qd3 {[%clk 0:03:00]}  Bb4 {[%clk 0:02:55]} 10. O-O {[%clk 0:02:59]}  O-O {[%clk 0:02:55]} 11. a3 {[%clk 0:02:54]}  Bxc3 {[%clk 0:02:42]} 12. bxc3 {[%clk 0:02:54]}  Be4 {[%clk 0:02:43]} 13. Qd1 {[%clk 0:02:49]}  c5 {[%clk 0:02:41]} 14. Be3 {[%clk 0:02:45]}  Nfd5 {[%clk 0:02:30]} 15. Bd2 {[%clk 0:02:30]}  Nc4 {[%clk 0:02:21]} 16. Be1 {[%clk 0:02:28]}  Rc8 {[%clk 0:02:16]} 17. Qb3 {[%clk 0:02:25]}  Na5 {[%clk 0:02:03]} 18. Qa4 {[%clk 0:02:17]}  c4 {[%clk 0:01:58]} 19. Ne5 {[%clk 0:02:11]}  Bxg2 {[%clk 0:01:39]} 20. Kxg2 {[%clk 0:02:11]}  Nb3 {[%clk 0:01:39]} 21. Rb1 {[%clk 0:01:58]}  a6 {[%clk 0:01:24]} 22. e4 {[%clk 0:01:50]}  Nb6 {[%clk 0:01:13]} 23. Qb4 {[%clk 0:01:50]}  f6 {[%clk 0:01:11]} 24. Nxc4 {[%clk 0:01:44]}  Nxc4 {[%clk 0:01:05]} 25. Qxb3 {[%clk 0:01:43]}  b5 {[%clk 0:01:06]} 26. a4 {[%clk 0:01:41]}  f5 {[%clk 0:01:01]} 27. axb5 {[%clk 0:01:32]}  axb5 {[%clk 0:00:59]} 28. Qxb5 {[%clk 0:01:28]}  fxe4 {[%clk 0:00:59]} 29. Rb4 {[%clk 0:01:28]}  Qd5 {[%clk 0:00:56]} 30. Qxd5 {[%clk 0:01:21]}  exd5 {[%clk 0:00:57]} 31. Rb5 {[%clk 0:01:15]}  Rcd8 {[%clk 0:00:47]} 32. Kg1 {[%clk 0:00:59]}  Rf5 {[%clk 0:00:45]} 33. h3 {[%clk 0:00:51]}  Rdf8 {[%clk 0:00:43]} 34. Rb1 {[%clk 0:00:36]}  Ne3 {[%clk 0:00:42]} 35. Bd2 {[%clk 0:00:28]}  Nxf1 {[%clk 0:00:41]} 36. Rxf1 {[%clk 0:00:28]}  Rb8 {[%clk 0:00:38]} 37. Be3 {[%clk 0:00:23]}  Rf7 {[%clk 0:00:33]} 38. Ra1 {[%clk 0:00:22]}  Rfb7 {[%clk 0:00:33]} 39. Ra5 {[%clk 0:00:22]}  Rb5 {[%clk 0:00:34]} 40. Ra7 {[%clk 0:00:21]}  R8b7 {[%clk 0:00:34]} 41. Ra6 {[%clk 0:00:21]}  Kf7 {[%clk 0:00:33]} 42. Rc6 {[%clk 0:00:20]}  R5b6 {[%clk 0:00:33]} 43. Rc8 {[%clk 0:00:20]}  Rd7 {[%clk 0:00:33]} 44. c4 {[%clk 0:00:20]}  dxc4 {[%clk 0:00:33]} 45. Rxc4 {[%clk 0:00:21]}  Ke6 {[%clk 0:00:32]} 46. d5+ {[%clk 0:00:18]}  Kxd5 {[%clk 0:00:33]} 47. Rd4+ {[%clk 0:00:18]}  Kc6 {[%clk 0:00:33]} 48. Rc4+ {[%clk 0:00:15]}  Kb5 {[%clk 0:00:27]} 49. Rxe4 {[%clk 0:00:14]}  Rc6 {[%clk 0:00:26]} 50. Re5+ {[%clk 0:00:13]}  Kc4 {[%clk 0:00:26]} 51. h4 {[%clk 0:00:13]}  Kd3 {[%clk 0:00:27]} 52. Kg2 {[%clk 0:00:13]}  g6 {[%clk 0:00:27]} 53. Ra5 {[%clk 0:00:11]}  h5 {[%clk 0:00:27]} 54. Ra3+ {[%clk 0:00:11]}  Ke4 {[%clk 0:00:27]} 55. Ra4+ {[%clk 0:00:11]}  Kf5 {[%clk 0:00:28]} 56. Rf4+ {[%clk 0:00:11]}  Ke6 {[%clk 0:00:28]} 57. Rf8 {[%clk 0:00:10]}  Rf7 {[%clk 0:00:28]} 58. Rg8 {[%clk 0:00:10]}  Kd7 {[%clk 0:00:28]} 59. Ra8 {[%clk 0:00:09]}  Re6 {[%clk 0:00:29]} 60. Ra7+ {[%clk 0:00:09]}  Ke8 {[%clk 0:00:30]} 61. Ra8+ {[%clk 0:00:09]}  Ke7 {[%clk 0:00:31]} 62. Ra7+ {[%clk 0:00:10]}  Kf6 {[%clk 0:00:31]} 63. Bd4+ {[%clk 0:00:10]}  Kf5 {[%clk 0:00:31]} 64. Ra5+ {[%clk 0:00:09]}  Ke4 {[%clk 0:00:32]} 65. Be3 {[%clk 0:00:10]}  Kd3 {[%clk 0:00:32]} 66. Ra3+ {[%clk 0:00:10]}  Kc4 {[%clk 0:00:33]} 67. Ra4+ {[%clk 0:00:10]}  Kb5 {[%clk 0:00:34]} 68. Rd4 {[%clk 0:00:10]}  Rc7 {[%clk 0:00:33]} 69. Rd8 {[%clk 0:00:10]}  Rc2 {[%clk 0:00:33]} 70. Rb8+ {[%clk 0:00:09]}  Ka6 {[%clk 0:00:34]} 71. Kf3 {[%clk 0:00:08]}  Rf6+ {[%clk 0:00:34]} 72. Ke4 {[%clk 0:00:08]}  Rc4+ {[%clk 0:00:34]} 73. Ke5 {[%clk 0:00:07]}  Rf5+ {[%clk 0:00:35]} 74. Ke6 {[%clk 0:00:08]}  Re4+ {[%clk 0:00:35]} 75. Kd6 {[%clk 0:00:08]}  Rf3 {[%clk 0:00:29]} 76. Rg8 {[%clk 0:00:07]}  Rf6+ {[%clk 0:00:26]} 77. Kd5 {[%clk 0:00:06]}  Re7 {[%clk 0:00:24]} 78. Bg5 {[%clk 0:00:05]}  Rf5+ {[%clk 0:00:24]} 79. Kd6 {[%clk 0:00:05]}  Rb7 {[%clk 0:00:25]} 80. f4 {[%clk 0:00:05]}  Rfb5 {[%clk 0:00:24]} 81. Ke6 {[%clk 0:00:04]}  R7b6+ {[%clk 0:00:24]} 82. Kf7 {[%clk 0:00:05]}  Rf5+ {[%clk 0:00:23]} 83. Kg7 {[%clk 0:00:04]}  Rd5 {[%clk 0:00:24]} 84. Kh6 {[%clk 0:00:05]}  Rdd6 {[%clk 0:00:23]} 85. Bd8 {[%clk 0:00:04]}  Rb8 {[%clk 0:00:22]} 0-1


[Site "https://www.chess.com"]

[Event "Titled Tuesday Blitz November 22 Early 2022"]
[White "Svane, Rasmus"]
[Black "Kosakowski, Jakub"]
[WhiteFideId "4657101"]
[BlackFideId "1185080"]
[WhiteElo "2674"]
[BlackElo "2463"]
[Result "1-0"]
[Round "03"]
[TimeControl "180+1"]
[Date "2022.11.22"]
[WhiteClock "0:00:12"]
[BlackClock "0:00:02"]

1. Nf3 {[%clk 0:03:00]}  d5 {[%clk 0:02:58]} 2. g3 {[%clk 0:03:01]}  Nd7 {[%clk 0:02:58]} 3. d4 {[%clk 0:03:01]}  Nb6 {[%clk 0:02:58]} 4. Nc3 {[%clk 0:03:01]}  Nf6 {[%clk 0:02:46]} 5. Bg2 {[%clk 0:03:01]}  g6 {[%clk 0:02:47]} 6. a4 {[%clk 0:02:48]}  a5 {[%clk 0:02:46]} 7. O-O {[%clk 0:02:46]}  Bg7 {[%clk 0:02:46]} 8. b3 {[%clk 0:02:46]}  O-O {[%clk 0:02:45]} 9. Ba3 {[%clk 0:02:42]}  Re8 {[%clk 0:02:45]} 10. e3 {[%clk 0:02:40]}  Bg4 {[%clk 0:02:45]} 11. h3 {[%clk 0:02:40]}  Bxf3 {[%clk 0:02:44]} 12. Bxf3 {[%clk 0:02:40]}  c6 {[%clk 0:02:45]} 13. Ne2 {[%clk 0:02:34]}  e5 {[%clk 0:02:38]} 14. Bb2 {[%clk 0:02:33]}  e4 {[%clk 0:02:34]} 15. Bg2 {[%clk 0:02:33]}  h5 {[%clk 0:02:35]} 16. Rc1 {[%clk 0:02:25]}  Bf8 {[%clk 0:02:23]} 17. c4 {[%clk 0:02:24]}  h4 {[%clk 0:02:18]} 18. g4 {[%clk 0:02:24]}  Nh7 {[%clk 0:02:14]} 19. cxd5 {[%clk 0:02:17]}  cxd5 {[%clk 0:02:12]} 20. Nc3 {[%clk 0:02:18]}  Ng5 {[%clk 0:02:11]} 21. Nb5 {[%clk 0:02:16]}  Rc8 {[%clk 0:02:02]} 22. Qe2 {[%clk 0:02:13]}  Qd7 {[%clk 0:01:48]} 23. Na7 {[%clk 0:01:56]}  Rxc1 {[%clk 0:01:43]} 24. Rxc1 {[%clk 0:01:57]}  f5 {[%clk 0:01:42]} 25. Nb5 {[%clk 0:01:48]}  fxg4 {[%clk 0:01:23]} 26. Qxg4 {[%clk 0:01:37]}  Qxg4 {[%clk 0:01:22]} 27. hxg4 {[%clk 0:01:38]}  Bb4 {[%clk 0:01:17]} 28. Bc3 {[%clk 0:00:32]}  Rc8 {[%clk 0:01:11]} 29. Bb2 {[%clk 0:00:30]}  Rf8 {[%clk 0:01:11]} 30. Bc3 {[%clk 0:00:29]}  Bxc3 {[%clk 0:00:59]} 31. Rxc3 {[%clk 0:00:30]}  h3 {[%clk 0:00:58]} 32. Bh1 {[%clk 0:00:28]}  Nd7 {[%clk 0:00:50]} 33. Nd6 {[%clk 0:00:23]}  Nf6 {[%clk 0:00:48]} 34. Rc8 {[%clk 0:00:19]}  Rxc8 {[%clk 0:00:42]} 35. Nxc8 {[%clk 0:00:20]}  Nxg4 {[%clk 0:00:42]} 36. Ne7+ {[%clk 0:00:21]}  Kf7 {[%clk 0:00:41]} 37. Nxd5 {[%clk 0:00:22]}  Nf3+ {[%clk 0:00:32]} 38. Kf1 {[%clk 0:00:19]}  g5 {[%clk 0:00:20]} 39. Nc3 {[%clk 0:00:19]}  Nf6 {[%clk 0:00:16]} 40. Nxe4 {[%clk 0:00:10]}  Nxe4 {[%clk 0:00:05]} 41. Bxf3 {[%clk 0:00:11]}  Nd2+ {[%clk 0:00:05]} 42. Ke2 {[%clk 0:00:11]}  g4 {[%clk 0:00:02]} 43. Bd5+ {[%clk 0:00:11]}  Kf6 {[%clk 0:00:02]} 44. Kxd2 {[%clk 0:00:12]} 1-0


[Site "https://www.chess.com"]

[Event "Titled Tuesday Blitz November 22 Early 2022"]
[White "Thorhallsson, Simon"]
[Black "Lakshmi C"]
[WhiteFideId "2310090"]
[BlackFideId "25035347"]
[WhiteElo "2109"]
[BlackElo "1865"]
[Result "1-0"]
[Round "03"]
[TimeControl "180+1"]
[Date "2022.11.23"]
[WhiteClock "0:00:39"]
[BlackClock "0:00:01"]

1. Nf3 {[%clk 0:03:00]}  Nf6 {[%clk 0:02:55]} 2. d4 {[%clk 0:03:00]}  e6 {[%clk 0:02:54]} 3. e3 {[%clk 0:03:00]}  d5 {[%clk 0:02:53]} 4. Bd3 {[%clk 0:03:00]}  Bd6 {[%clk 0:02:54]} 5. b3 {[%clk 0:03:01]}  O-O {[%clk 0:02:53]} 6. Bb2 {[%clk 0:03:01]}  Nbd7 {[%clk 0:02:53]} 7. O-O {[%clk 0:03:01]}  Re8 {[%clk 0:02:52]} 8. Nbd2 {[%clk 0:03:01]}  e5 {[%clk 0:02:51]} 9. dxe5 {[%clk 0:02:59]}  Nxe5 {[%clk 0:02:51]} 10. Nxe5 {[%clk 0:02:57]}  Bxe5 {[%clk 0:02:51]} 11. Bxe5 {[%clk 0:02:56]}  Rxe5 {[%clk 0:02:51]} 12. c4 {[%clk 0:02:57]}  c6 {[%clk 0:02:46]} 13. Qf3 {[%clk 0:02:43]}  Bg4 {[%clk 0:02:41]} 14. Qf4 {[%clk 0:02:40]}  Re8 {[%clk 0:02:22]} 15. Bf5 {[%clk 0:02:22]}  Bxf5 {[%clk 0:01:51]} 16. Qxf5 {[%clk 0:02:23]}  Qd6 {[%clk 0:01:51]} 17. Rfd1 {[%clk 0:02:17]}  Re5 {[%clk 0:01:49]} 18. Qf3 {[%clk 0:02:14]}  Qe6 {[%clk 0:01:45]} 19. cxd5 {[%clk 0:02:10]}  cxd5 {[%clk 0:01:16]} 20. Nf1 {[%clk 0:02:06]}  Rf5 {[%clk 0:01:10]} 21. Qh3 {[%clk 0:02:04]}  Qe5 {[%clk 0:00:18]} 22. Ng3 {[%clk 0:01:49]}  Rg5 {[%clk 0:00:16]} 23. Rac1 {[%clk 0:01:46]}  Ng4 {[%clk 0:00:09]} 24. Rc2 {[%clk 0:01:33]}  Qe6 {[%clk 0:00:07]} 25. Ne2 {[%clk 0:01:15]}  f5 {[%clk 0:00:06]} 26. Nf4 {[%clk 0:01:12]}  Qe4 {[%clk 0:00:07]} 27. Rcd2 {[%clk 0:01:09]}  Ne5 {[%clk 0:00:03]} 28. Kh1 {[%clk 0:01:02]}  Qb4 {[%clk 0:00:01]} 29. Nxd5 {[%clk 0:01:00]}  Qa3 {[%clk 0:00:01]} 30. Qh4 {[%clk 0:00:55]}  h6 {[%clk 0:00:01]} 31. Qf4 {[%clk 0:00:40]}  Kh8 {[%clk 0:00:01]} 32. Qxe5 {[%clk 0:00:39]} 1-0


[Site "https://www.chess.com"]

[Event "Titled Tuesday Blitz November 22 Early 2022"]
[White "Urazayev, Arystanbek"]
[Black "Martic, Ivan"]
[WhiteFideId "13709810"]
[BlackFideId "929301"]
[WhiteElo "2441"]
[BlackElo "2355"]
[Result "1-0"]
[Round "03"]
[TimeControl "180+1"]
[Date "2022.11.23"]
[WhiteClock "0:00:08"]
[BlackClock "0:00:03"]

1. d4 {[%clk 0:02:58]}  Nf6 {[%clk 0:02:59]} 2. c4 {[%clk 0:02:58]}  g6 {[%clk 0:02:58]} 3. Nc3 {[%clk 0:02:58]}  d5 {[%clk 0:02:58]} 4. cxd5 {[%clk 0:02:52]}  Nxd5 {[%clk 0:02:59]} 5. g3 {[%clk 0:02:53]}  Bg7 {[%clk 0:02:58]} 6. Bg2 {[%clk 0:02:53]}  Nxc3 {[%clk 0:02:58]} 7. bxc3 {[%clk 0:02:54]}  c5 {[%clk 0:02:59]} 8. Nf3 {[%clk 0:02:55]}  Qa5 {[%clk 0:02:56]} 9. Bd2 {[%clk 0:02:54]}  O-O {[%clk 0:02:55]} 10. O-O {[%clk 0:02:53]}  Qa6 {[%clk 0:02:43]} 11. a4 {[%clk 0:02:41]}  Nc6 {[%clk 0:02:39]} 12. e3 {[%clk 0:02:34]}  Be6 {[%clk 0:02:31]} 13. dxc5 {[%clk 0:02:25]}  Bc4 {[%clk 0:02:25]} 14. Re1 {[%clk 0:02:25]}  Rfd8 {[%clk 0:02:19]} 15. Qc2 {[%clk 0:02:19]}  Bd3 {[%clk 0:02:09]} 16. Qa2 {[%clk 0:02:10]}  Na5 {[%clk 0:02:06]} 17. Nd4 {[%clk 0:02:06]}  Rac8 {[%clk 0:01:52]} 18. Bc1 {[%clk 0:01:41]}  Rxc5 {[%clk 0:01:45]} 19. Ba3 {[%clk 0:01:41]}  Rc7 {[%clk 0:01:41]} 20. Bb4 {[%clk 0:01:35]}  b6 {[%clk 0:01:31]} 21. Red1 {[%clk 0:01:21]}  Rdc8 {[%clk 0:01:24]} 22. h4 {[%clk 0:00:41]}  h5 {[%clk 0:01:20]} 23. Bd5 {[%clk 0:00:41]}  Bc4 {[%clk 0:01:18]} 24. Bxc4 {[%clk 0:00:37]}  Nxc4 {[%clk 0:01:04]} 25. Nb5 {[%clk 0:00:37]}  Rb7 {[%clk 0:01:05]} 26. Qe2 {[%clk 0:00:37]}  Ne5 {[%clk 0:00:54]} 27. Qc2 {[%clk 0:00:19]}  Nc6 {[%clk 0:00:38]} 28. Qe4 {[%clk 0:00:19]}  Nxb4 {[%clk 0:00:36]} 29. Qxb4 {[%clk 0:00:20]}  Qa5 {[%clk 0:00:33]} 30. Qe4 {[%clk 0:00:21]}  Qa6 {[%clk 0:00:27]} 31. Rd3 {[%clk 0:00:20]}  Bf6 {[%clk 0:00:21]} 32. Rad1 {[%clk 0:00:21]}  Rbb8 {[%clk 0:00:19]} 33. Rd7 {[%clk 0:00:19]}  Ra8 {[%clk 0:00:14]} 34. Nc7 {[%clk 0:00:19]}  Rxc7 {[%clk 0:00:11]} 35. Qxa8+ {[%clk 0:00:18]}  Rc8 {[%clk 0:00:11]} 36. Qxc8+ {[%clk 0:00:17]}  Qxc8 {[%clk 0:00:11]} 37. Rd8+ {[%clk 0:00:18]}  Qxd8 {[%clk 0:00:11]} 38. Rxd8+ {[%clk 0:00:19]}  Kg7 {[%clk 0:00:12]} 39. c4 {[%clk 0:00:19]}  Bc3 {[%clk 0:00:11]} 40. Ra8 {[%clk 0:00:18]}  Bb4 {[%clk 0:00:10]} 41. Rxa7 {[%clk 0:00:18]}  Kf6 {[%clk 0:00:11]} 42. Rb7 {[%clk 0:00:16]}  Bc5 {[%clk 0:00:11]} 43. Kg2 {[%clk 0:00:12]}  Ke6 {[%clk 0:00:09]} 44. Kf3 {[%clk 0:00:13]}  Kd6 {[%clk 0:00:10]} 45. Rb8 {[%clk 0:00:12]}  Kc7 {[%clk 0:00:08]} 46. Rg8 {[%clk 0:00:12]}  Bd6 {[%clk 0:00:08]} 47. g4 {[%clk 0:00:12]}  hxg4+ {[%clk 0:00:08]} 48. Kxg4 {[%clk 0:00:13]}  Kc6 {[%clk 0:00:08]} 49. Rc8+ {[%clk 0:00:12]}  Kd7 {[%clk 0:00:08]} 50. Rg8 {[%clk 0:00:12]}  Kc6 {[%clk 0:00:08]} 51. h5 {[%clk 0:00:13]}  gxh5+ {[%clk 0:00:08]} 52. Kxh5 {[%clk 0:00:13]}  Kc5 {[%clk 0:00:09]} 53. Rc8+ {[%clk 0:00:14]}  Kb4 {[%clk 0:00:09]} 54. Rc6 {[%clk 0:00:13]}  Bc5 {[%clk 0:00:08]} 55. Kg4 {[%clk 0:00:11]}  Kxa4 {[%clk 0:00:08]} 56. Kf5 {[%clk 0:00:10]}  Kb4 {[%clk 0:00:09]} 57. Ke4 {[%clk 0:00:10]}  Kxc4 {[%clk 0:00:09]} 58. Rc8 {[%clk 0:00:09]}  b5 {[%clk 0:00:09]} 59. Kf3 {[%clk 0:00:10]}  b4 {[%clk 0:00:10]} 60. Ke2 {[%clk 0:00:11]}  b3 {[%clk 0:00:10]} 61. Kd2 {[%clk 0:00:11]}  f5 {[%clk 0:00:07]} 62. Rc7 {[%clk 0:00:09]}  Kb4 {[%clk 0:00:07]} 63. Kd3 {[%clk 0:00:09]}  Bd6 {[%clk 0:00:03]} 64. Rb7+ {[%clk 0:00:10]}  Ka3 {[%clk 0:00:03]} 65. Kc4 {[%clk 0:00:08]}  b2 {[%clk 0:00:03]} 66. Ra7# {[%clk 0:00:08]} 1-0


[Site "https://www.chess.com"]

[Event "Titled Tuesday Blitz November 22 Early 2022"]
[White "Vaibhav Jayant Raut"]
[Black "Jones, Gawain C B"]
[WhiteFideId "5089034"]
[BlackFideId "409561"]
[WhiteElo "2147"]
[BlackElo "2657"]
[Result "0-1"]
[Round "03"]
[TimeControl "180+1"]
[Date "2022.11.22"]
[WhiteClock "0:00:20"]
[BlackClock "0:00:24"]

1. c4 {[%clk 0:03:00]}  Nf6 {[%clk 0:02:53]} 2. g3 {[%clk 0:03:00]}  g6 {[%clk 0:02:53]} 3. Bg2 {[%clk 0:03:01]}  Bg7 {[%clk 0:02:54]} 4. Nc3 {[%clk 0:03:01]}  O-O {[%clk 0:02:54]} 5. d3 {[%clk 0:03:02]}  e5 {[%clk 0:02:51]} 6. e4 {[%clk 0:03:00]}  c5 {[%clk 0:02:38]} 7. Nge2 {[%clk 0:03:00]}  Nc6 {[%clk 0:02:38]} 8. O-O {[%clk 0:03:01]}  d6 {[%clk 0:02:38]} 9. h3 {[%clk 0:03:00]}  Ne8 {[%clk 0:02:36]} 10. Be3 {[%clk 0:02:58]}  Nc7 {[%clk 0:02:36]} 11. f4 {[%clk 0:02:57]}  exf4 {[%clk 0:02:34]} 12. Nxf4 {[%clk 0:02:55]}  Rb8 {[%clk 0:02:32]} 13. Qd2 {[%clk 0:02:53]}  b5 {[%clk 0:02:30]} 14. b3 {[%clk 0:02:50]}  b4 {[%clk 0:02:21]} 15. Ncd5 {[%clk 0:02:50]}  Nxd5 {[%clk 0:02:21]} 16. Nxd5 {[%clk 0:02:51]}  Be6 {[%clk 0:02:13]} 17. Bg5 {[%clk 0:02:47]}  Bd4+ {[%clk 0:02:13]} 18. Kh1 {[%clk 0:02:44]}  f6 {[%clk 0:02:12]} 19. Bh6 {[%clk 0:02:40]}  Bxa1 {[%clk 0:02:11]} 20. Rxa1 {[%clk 0:02:22]}  Rf7 {[%clk 0:02:05]} 21. Rf1 {[%clk 0:02:22]}  Bxd5 {[%clk 0:02:02]} 22. cxd5 {[%clk 0:02:14]}  Ne5 {[%clk 0:01:58]} 23. h4 {[%clk 0:02:14]}  Qd7 {[%clk 0:01:42]} 24. Bf4 {[%clk 0:02:13]}  a5 {[%clk 0:01:34]} 25. Kh2 {[%clk 0:02:10]}  Ng4+ {[%clk 0:01:34]} 26. Kg1 {[%clk 0:02:09]}  g5 {[%clk 0:01:23]} 27. hxg5 {[%clk 0:02:01]}  fxg5 {[%clk 0:01:24]} 28. Bxg5 {[%clk 0:02:01]}  Rxf1+ {[%clk 0:01:25]} 29. Bxf1 {[%clk 0:02:02]}  Qg7 {[%clk 0:01:20]} 30. Bh3 {[%clk 0:01:55]}  h5 {[%clk 0:00:50]} 31. Bf4 {[%clk 0:01:48]}  Rf8 {[%clk 0:00:45]} 32. Kg2 {[%clk 0:01:40]}  Qf6 {[%clk 0:00:33]} 33. Bxg4 {[%clk 0:01:38]}  hxg4 {[%clk 0:00:33]} 34. Qe2 {[%clk 0:01:34]}  Qg6 {[%clk 0:00:33]} 35. e5 {[%clk 0:01:26]}  dxe5 {[%clk 0:00:30]} 36. Qxe5 {[%clk 0:01:27]}  Re8 {[%clk 0:00:26]} 37. Qg5 {[%clk 0:00:33]}  Qxg5 {[%clk 0:00:26]} 38. Bxg5 {[%clk 0:00:33]}  Re5 {[%clk 0:00:25]} 39. Bd8 {[%clk 0:00:20]}  Rxd5 {[%clk 0:00:25]} 40. Bxa5 {[%clk 0:00:20]}  Rxd3 {[%clk 0:00:24]} 0-1


[Site "https://www.chess.com"]

[Event "Titled Tuesday Blitz November 22 Early 2022"]
[White "Vaishali, Rameshbabu"]
[Black "Rangel, Daniel"]
[WhiteFideId "5091756"]
[BlackFideId "2124475"]
[WhiteElo "2351"]
[BlackElo "2225"]
[Result "0-1"]
[Round "03"]
[TimeControl "180+1"]
[Date "2022.11.23"]
[WhiteClock "0:00:01"]
[BlackClock "0:00:20"]

1. d4 {[%clk 0:03:00]}  Nf6 {[%clk 0:02:59]} 2. c4 {[%clk 0:03:00]}  e6 {[%clk 0:02:59]} 3. Nc3 {[%clk 0:03:00]}  d5 {[%clk 0:02:59]} 4. Nf3 {[%clk 0:02:59]}  c6 {[%clk 0:02:59]} 5. Bg5 {[%clk 0:02:58]}  Nbd7 {[%clk 0:03:00]} 6. e3 {[%clk 0:02:56]}  h6 {[%clk 0:03:00]} 7. Bh4 {[%clk 0:02:54]}  g5 {[%clk 0:03:00]} 8. Bg3 {[%clk 0:02:54]}  Nh5 {[%clk 0:03:01]} 9. Be2 {[%clk 0:02:52]}  Nxg3 {[%clk 0:03:01]} 10. hxg3 {[%clk 0:02:53]}  Bg7 {[%clk 0:03:01]} 11. Qc2 {[%clk 0:02:50]}  Qb6 {[%clk 0:02:55]} 12. O-O-O {[%clk 0:02:23]}  Qa5 {[%clk 0:02:29]} 13. e4 {[%clk 0:02:21]}  dxc4 {[%clk 0:02:28]} 14. Bxc4 {[%clk 0:02:21]}  b5 {[%clk 0:02:28]} 15. Bb3 {[%clk 0:02:19]}  Bb7 {[%clk 0:02:21]} 16. Kb1 {[%clk 0:02:16]}  c5 {[%clk 0:02:05]} 17. dxc5 {[%clk 0:01:50]}  Nxc5 {[%clk 0:02:02]} 18. Nd2 {[%clk 0:01:03]}  Rc8 {[%clk 0:01:50]} 19. Rde1 {[%clk 0:00:57]}  b4 {[%clk 0:01:38]} 20. Nd5 {[%clk 0:00:52]}  Nxb3 {[%clk 0:01:09]} 21. Qxb3 {[%clk 0:00:45]}  exd5 {[%clk 0:01:06]} 22. exd5+ {[%clk 0:00:39]}  Kf8 {[%clk 0:01:06]} 23. Nc4 {[%clk 0:00:35]}  Qxd5 {[%clk 0:00:58]} 24. Qxb4+ {[%clk 0:00:34]}  Kg8 {[%clk 0:00:56]} 25. Nd6 {[%clk 0:00:33]}  Rb8 {[%clk 0:00:28]} 26. Re7 {[%clk 0:00:22]}  Bf8 {[%clk 0:00:24]} 27. Rd7 {[%clk 0:00:08]}  Bxd6 {[%clk 0:00:19]} 28. Rxd6 {[%clk 0:00:05]}  Qe4+ {[%clk 0:00:19]} 29. Qxe4 {[%clk 0:00:05]}  Bxe4+ {[%clk 0:00:19]} 30. Ka1 {[%clk 0:00:06]}  Bxg2 {[%clk 0:00:19]} 31. Rhxh6 {[%clk 0:00:05]}  Rxh6 {[%clk 0:00:19]} 32. Rxh6 {[%clk 0:00:06]}  Kg7 {[%clk 0:00:19]} 33. Ra6 {[%clk 0:00:06]}  Rb7 {[%clk 0:00:18]} 34. a3 {[%clk 0:00:06]}  Bd5 {[%clk 0:00:18]} 35. b4 {[%clk 0:00:06]}  Be6 {[%clk 0:00:18]} 36. Kb2 {[%clk 0:00:07]}  Rd7 {[%clk 0:00:18]} 37. Kc3 {[%clk 0:00:07]}  g4 {[%clk 0:00:18]} 38. a4 {[%clk 0:00:07]}  Rd1 {[%clk 0:00:17]} 39. Rxa7 {[%clk 0:00:07]}  Rf1 {[%clk 0:00:18]} 40. b5 {[%clk 0:00:07]}  Rxf2 {[%clk 0:00:18]} 41. b6 {[%clk 0:00:07]}  Rf3+ {[%clk 0:00:19]} 42. Kd4 {[%clk 0:00:07]}  Rxg3 {[%clk 0:00:19]} 43. a5 {[%clk 0:00:04]}  Rb3 {[%clk 0:00:20]} 44. b7 {[%clk 0:00:04]}  g3 {[%clk 0:00:20]} 45. a6 {[%clk 0:00:01]}  g2 {[%clk 0:00:20]} 0-1


[Site "https://www.chess.com"]

[Event "Titled Tuesday Blitz November 22 Early 2022"]
[White "Williams, Simon K"]
[Black "Maung, Maung Kyaw Zaw Hein"]
[WhiteFideId "404454"]
[BlackFideId "13001698"]
[WhiteElo "2468"]
[BlackElo "2019"]
[Result "1-0"]
[Round "03"]
[TimeControl "180+1"]
[Date "2022.11.23"]
[WhiteClock "0:01:42"]
[BlackClock "0:01:36"]

1. d4 {[%clk 0:03:00]}  d5 {[%clk 0:02:59]} 2. c4 {[%clk 0:03:00]}  c6 {[%clk 0:02:59]} 3. Nc3 {[%clk 0:03:00]}  Nf6 {[%clk 0:03:00]} 4. Nf3 {[%clk 0:02:59]}  e6 {[%clk 0:02:55]} 5. Bg5 {[%clk 0:02:59]}  dxc4 {[%clk 0:02:54]} 6. e4 {[%clk 0:02:57]}  h6 {[%clk 0:02:54]} 7. Bh4 {[%clk 0:02:55]}  g5 {[%clk 0:02:55]} 8. Bg3 {[%clk 0:02:54]}  b5 {[%clk 0:02:54]} 9. e5 {[%clk 0:02:53]}  Nd5 {[%clk 0:02:54]} 10. Nd2 {[%clk 0:02:53]}  b4 {[%clk 0:02:46]} 11. Nce4 {[%clk 0:02:51]}  c3 {[%clk 0:02:44]} 12. Nc4 {[%clk 0:02:48]}  Ba6 {[%clk 0:02:40]} 13. Ncd6+ {[%clk 0:02:46]}  Bxd6 {[%clk 0:02:40]} 14. Nxd6+ {[%clk 0:02:46]}  Kf8 {[%clk 0:02:40]} 15. bxc3 {[%clk 0:02:41]}  Bxf1 {[%clk 0:02:39]} 16. Kxf1 {[%clk 0:02:38]}  bxc3 {[%clk 0:02:38]} 17. h4 {[%clk 0:02:34]}  c5 {[%clk 0:02:28]} 18. dxc5 {[%clk 0:02:27]}  Nc6 {[%clk 0:02:27]} 19. Qh5 {[%clk 0:02:21]}  Qe7 {[%clk 0:01:56]} 20. hxg5 {[%clk 0:02:18]}  Nd4 {[%clk 0:01:53]} 21. gxh6 {[%clk 0:01:59]}  Rh7 {[%clk 0:01:49]} 22. Rh4 {[%clk 0:01:50]}  Nf5 {[%clk 0:01:48]} 23. Nxf5 {[%clk 0:01:48]}  exf5 {[%clk 0:01:47]} 24. Qxf5 {[%clk 0:01:47]}  Kg8 {[%clk 0:01:43]} 25. Rg4+ {[%clk 0:01:44]}  Kh8 {[%clk 0:01:43]} 26. e6 {[%clk 0:01:43]}  Qxe6 {[%clk 0:01:40]} 27. Qxe6 {[%clk 0:01:43]}  fxe6 {[%clk 0:01:36]} 28. Be5+ {[%clk 0:01:42]} 1-0


[Site "https://www.chess.com"]